[Event "Titled Tuesday Blitz March 28 Early 2023"]
[White "Rom, Jasper"]
[Black "Avalos Parra, Joao"]
[WhiteFideId "2023733"]
[BlackFideId "3402541"]
[WhiteElo "2233"]
[BlackElo "2173"]
[Result "1-0"]
[Round "03"]
[TimeControl "180+2"]
[Date "2023.03.28"]
[WhiteClock "0:00:07"]
[BlackClock "0:00:14"]

1. e4 {[%clk 0:02:55]}  e5 {[%clk 0:03:00]} 2. Nf3 {[%clk 0:02:54]}  Nc6 {[%clk 0:02:59]} 3. Bb5 {[%clk 0:02:55]}  a6 {[%clk 0:02:59]} 4. Bxc6 {[%clk 0:02:55]}  dxc6 {[%clk 0:02:59]} 5. O-O {[%clk 0:02:55]}  Qf6 {[%clk 0:02:58]} 6. d4 {[%clk 0:02:45]}  exd4 {[%clk 0:02:59]} 7. Bg5 {[%clk 0:02:44]}  Qd6 {[%clk 0:02:56]} 8. Nxd4 {[%clk 0:02:40]}  f6 {[%clk 0:02:53]} 9. Bh4 {[%clk 0:02:36]}  c5 {[%clk 0:02:52]} 10. Ne2 {[%clk 0:02:31]}  Bg4 {[%clk 0:02:49]} 11. f3 {[%clk 0:02:21]}  Be6 {[%clk 0:02:47]} 12. Bg3 {[%clk 0:02:20]}  Qxd1 {[%clk 0:02:44]} 13. Rxd1 {[%clk 0:02:19]}  c6 {[%clk 0:02:42]} 14. Nbc3 {[%clk 0:02:10]}  Be7 {[%clk 0:02:39]} 15. a4 {[%clk 0:02:05]}  Nh6 {[%clk 0:02:39]} 16. a5 {[%clk 0:01:52]}  Kf7 {[%clk 0:02:32]} 17. Na4 {[%clk 0:01:51]}  Rhd8 {[%clk 0:02:30]} 18. Bc7 {[%clk 0:01:46]}  Rxd1+ {[%clk 0:02:27]} 19. Rxd1 {[%clk 0:01:47]}  Rc8 {[%clk 0:02:05]} 20. Bg3 {[%clk 0:01:37]}  g5 {[%clk 0:01:37]} 21. Nec3 {[%clk 0:01:28]}  f5 {[%clk 0:01:29]} 22. Bd6 {[%clk 0:01:21]}  c4 {[%clk 0:01:15]} 23. Nc5 {[%clk 0:01:05]}  Rd8 {[%clk 0:01:04]} 24. Bxe7 {[%clk 0:00:57]}  Rxd1+ {[%clk 0:01:03]} 25. Nxd1 {[%clk 0:00:57]}  Kxe7 {[%clk 0:01:03]} 26. Nxb7 {[%clk 0:00:51]}  fxe4 {[%clk 0:01:02]} 27. fxe4 {[%clk 0:00:51]}  Nf7 {[%clk 0:00:59]} 28. Nc5 {[%clk 0:00:51]}  Kd6 {[%clk 0:00:57]} 29. Nxa6 {[%clk 0:00:48]}  c5 {[%clk 0:00:56]} 30. Nc3 {[%clk 0:00:37]}  Bc8 {[%clk 0:00:54]} 31. Nb5+ {[%clk 0:00:25]}  Kd7 {[%clk 0:00:44]} 32. Nac7 {[%clk 0:00:24]}  Nd6 {[%clk 0:00:34]} 33. Nxd6 {[%clk 0:00:22]}  Kxd6 {[%clk 0:00:35]} 34. Nd5 {[%clk 0:00:22]}  Ke5 {[%clk 0:00:33]} 35. Nc3 {[%clk 0:00:15]}  h5 {[%clk 0:00:26]} 36. Kf2 {[%clk 0:00:14]}  g4 {[%clk 0:00:25]} 37. Ke3 {[%clk 0:00:14]}  h4 {[%clk 0:00:26]} 38. g3 {[%clk 0:00:13]}  hxg3 {[%clk 0:00:23]} 39. hxg3 {[%clk 0:00:14]}  Bb7 {[%clk 0:00:20]} 40. Na4 {[%clk 0:00:13]}  Bxe4 {[%clk 0:00:19]} 41. Nxc5 {[%clk 0:00:08]}  Bf3 {[%clk 0:00:17]} 42. c3 {[%clk 0:00:06]}  Kd5 {[%clk 0:00:17]} 43. Nd7 {[%clk 0:00:06]}  Kd6 {[%clk 0:00:17]} 44. Nf6 {[%clk 0:00:06]}  Kc5 {[%clk 0:00:16]} 45. Kf4 {[%clk 0:00:05]}  Kb5 {[%clk 0:00:15]} 46. Nxg4 {[%clk 0:00:05]}  Bd1 {[%clk 0:00:14]} 47. Ne3 {[%clk 0:00:04]}  Be2 {[%clk 0:00:15]} 48. g4 {[%clk 0:00:04]}  Kxa5 {[%clk 0:00:15]} 49. g5 {[%clk 0:00:05]}  Kb5 {[%clk 0:00:14]} 50. g6 {[%clk 0:00:05]}  Bh5 {[%clk 0:00:13]} 51. Kg5 {[%clk 0:00:05]}  Bxg6 {[%clk 0:00:11]} 52. Kxg6 {[%clk 0:00:05]}  Ka4 {[%clk 0:00:11]} 53. Nxc4 {[%clk 0:00:05]}  Kb3 {[%clk 0:00:12]} 54. Ne3 {[%clk 0:00:05]}  Kxb2 {[%clk 0:00:11]} 55. c4 {[%clk 0:00:05]}  Kc3 {[%clk 0:00:12]} 56. c5 {[%clk 0:00:05]}  Kd4 {[%clk 0:00:13]} 57. c6 {[%clk 0:00:06]}  Kxe3 {[%clk 0:00:13]} 58. c7 {[%clk 0:00:07]}  Kd3 {[%clk 0:00:14]} 59. c8=Q {[%clk 0:00:07]} 1-0


[Site "https://www.chess.com"]

[Event "Titled Tuesday Blitz March 28 Early 2023"]
[White "Kubatko, Ivan"]
[Black "Rodriguez Santiago, Jaime"]
[WhiteFideId "24111473"]
[BlackFideId "3100898"]
[WhiteElo "2285"]
[BlackElo "2025"]
[Result "1-0"]
[Round "03"]
[TimeControl "180+2"]
[Date "2023.03.28"]
[WhiteClock "0:00:12"]
[BlackClock "0:00:09"]

1. e4 {[%clk 0:03:00]}  c6 {[%clk 0:02:59]} 2. d4 {[%clk 0:02:45]}  d5 {[%clk 0:02:59]} 3. exd5 {[%clk 0:02:45]}  cxd5 {[%clk 0:02:59]} 4. c4 {[%clk 0:02:46]}  e6 {[%clk 0:02:58]} 5. Nc3 {[%clk 0:02:46]}  Nf6 {[%clk 0:02:57]} 6. Nf3 {[%clk 0:02:46]}  Nc6 {[%clk 0:02:57]} 7. cxd5 {[%clk 0:02:46]}  Nxd5 {[%clk 0:02:57]} 8. Bd3 {[%clk 0:02:45]}  Be7 {[%clk 0:02:52]} 9. O-O {[%clk 0:02:45]}  h6 {[%clk 0:02:52]} 10. Re1 {[%clk 0:02:42]}  O-O {[%clk 0:02:51]} 11. a3 {[%clk 0:02:41]}  Nxc3 {[%clk 0:02:51]} 12. bxc3 {[%clk 0:02:41]}  b6 {[%clk 0:02:50]} 13. Qe2 {[%clk 0:02:27]}  f5 {[%clk 0:02:18]} 14. Bc4 {[%clk 0:02:07]}  Rf6 {[%clk 0:02:17]} 15. Bf4 {[%clk 0:01:48]}  Kh8 {[%clk 0:02:13]} 16. Rad1 {[%clk 0:01:44]}  Na5 {[%clk 0:01:53]} 17. Ba2 {[%clk 0:01:38]}  Bd6 {[%clk 0:01:52]} 18. Be5 {[%clk 0:01:30]}  Rf8 {[%clk 0:01:24]} 19. d5 {[%clk 0:01:30]}  Bxe5 {[%clk 0:01:18]} 20. Nxe5 {[%clk 0:01:30]}  Qf6 {[%clk 0:01:16]} 21. d6 {[%clk 0:01:07]}  Bb7 {[%clk 0:01:16]} 22. Qh5 {[%clk 0:00:40]}  Kh7 {[%clk 0:00:54]} 23. Nd7 {[%clk 0:00:39]}  Qxc3 {[%clk 0:00:51]} 24. Nxf8+ {[%clk 0:00:38]}  Rxf8 {[%clk 0:00:52]} 25. Bxe6 {[%clk 0:00:31]}  Qc5 {[%clk 0:00:36]} 26. d7 {[%clk 0:00:28]}  Nc6 {[%clk 0:00:11]} 27. Rd5 {[%clk 0:00:25]}  Qc3 {[%clk 0:00:10]} 28. Bxf5+ {[%clk 0:00:23]}  Kh8 {[%clk 0:00:10]} 29. Re8 {[%clk 0:00:12]}  Qc1+ {[%clk 0:00:09]} 30. Rd1 {[%clk 0:00:12]} 1-0


[Site "https://www.chess.com"]

[Event "Titled Tuesday Blitz March 28 Early 2023"]
[White "Lesbekova, Assel"]
[Black "Khamdamova, Afruza"]
[WhiteFideId "13713248"]
[BlackFideId "14210444"]
[WhiteElo "1799"]
[BlackElo "2210"]
[Result "0-1"]
[Round "03"]
[TimeControl "180+2"]
[Date "2023.03.28"]
[WhiteClock "0:00:05"]
[BlackClock "0:00:11"]

1. e4 {[%clk 0:03:00]}  e5 {[%clk 0:02:59]} 2. Nf3 {[%clk 0:03:00]}  Nf6 {[%clk 0:02:59]} 3. Nc3 {[%clk 0:02:59]}  Nc6 {[%clk 0:02:59]} 4. d4 {[%clk 0:02:58]}  exd4 {[%clk 0:02:59]} 5. Nxd4 {[%clk 0:02:59]}  Bb4 {[%clk 0:02:58]} 6. Nxc6 {[%clk 0:02:59]}  bxc6 {[%clk 0:02:59]} 7. Qd4 {[%clk 0:03:00]}  Qe7 {[%clk 0:02:58]} 8. Bd3 {[%clk 0:02:38]}  c5 {[%clk 0:02:48]} 9. Qe3 {[%clk 0:02:32]}  d5 {[%clk 0:02:13]} 10. exd5 {[%clk 0:02:18]}  Nxd5 {[%clk 0:02:10]} 11. Bb5+ {[%clk 0:01:50]}  Bd7 {[%clk 0:01:48]} 12. Bxd7+ {[%clk 0:01:45]}  Kxd7 {[%clk 0:01:48]} 13. Qxe7+ {[%clk 0:01:45]}  Kxe7 {[%clk 0:01:48]} 14. Bd2 {[%clk 0:01:35]}  Bxc3 {[%clk 0:01:47]} 15. Bxc3 {[%clk 0:01:28]}  Nxc3 {[%clk 0:01:46]} 16. bxc3 {[%clk 0:01:29]}  Rab8 {[%clk 0:01:46]} 17. O-O-O {[%clk 0:01:14]}  Rhe8 {[%clk 0:01:44]} 18. Rd5 {[%clk 0:01:08]}  Kf8 {[%clk 0:01:21]} 19. Rhd1 {[%clk 0:00:57]}  Re2 {[%clk 0:00:45]} 20. R1d2 {[%clk 0:00:33]}  Rbe8 {[%clk 0:00:45]} 21. Rxc5 {[%clk 0:00:30]}  Re1+ {[%clk 0:00:34]} 22. Kb2 {[%clk 0:00:27]}  Rb8+ {[%clk 0:00:29]} 23. Ka3 {[%clk 0:00:28]}  Re6 {[%clk 0:00:27]} 24. Ra5 {[%clk 0:00:23]}  Rb7 {[%clk 0:00:18]} 25. Rd8+ {[%clk 0:00:14]}  Ke7 {[%clk 0:00:18]} 26. Ra8 {[%clk 0:00:15]}  Rc6 {[%clk 0:00:18]} 27. R8xa7 {[%clk 0:00:04]}  Rxc3+ {[%clk 0:00:17]} 28. Ka4 {[%clk 0:00:05]}  Rb2 {[%clk 0:00:11]} 0-1


[Site "https://www.chess.com"]

[Event "Titled Tuesday Blitz March 28 Early 2023"]
[White "Shapiro, Viktor"]
[Black "rionelG"]
[WhiteFideId "4175700"]
[WhiteElo "2152"]
[BlackElo "2228"]
[Result "1-0"]
[Round "03"]
[TimeControl "180+2"]
[Date "2023.03.28"]
[WhiteClock "0:01:55"]
[BlackClock "0:01:06"]

1. c4 {[%clk 0:03:00]}  Nf6 {[%clk 0:02:52]} 2. Nc3 {[%clk 0:03:01]}  g6 {[%clk 0:02:51]} 3. Nf3 {[%clk 0:03:00]}  Bg7 {[%clk 0:02:51]} 4. d4 {[%clk 0:03:00]}  O-O {[%clk 0:02:51]} 5. Bg5 {[%clk 0:03:00]}  d6 {[%clk 0:02:51]} 6. e3 {[%clk 0:03:01]}  h6 {[%clk 0:02:49]} 7. Bh4 {[%clk 0:03:00]}  c5 {[%clk 0:02:49]} 8. Be2 {[%clk 0:02:58]}  g5 {[%clk 0:02:48]} 9. Bg3 {[%clk 0:02:58]}  Nh5 {[%clk 0:02:49]} 10. Qc2 {[%clk 0:02:58]}  f5 {[%clk 0:02:42]} 11. dxc5 {[%clk 0:02:57]}  Nxg3 {[%clk 0:02:41]} 12. hxg3 {[%clk 0:02:57]}  dxc5 {[%clk 0:02:41]} 13. Rd1 {[%clk 0:02:56]}  Qe8 {[%clk 0:02:40]} 14. Nd5 {[%clk 0:02:44]}  Na6 {[%clk 0:02:39]} 15. a3 {[%clk 0:02:35]}  e6 {[%clk 0:02:38]} 16. Nc3 {[%clk 0:02:35]}  e5 {[%clk 0:02:32]} 17. Nd5 {[%clk 0:02:33]}  Be6 {[%clk 0:02:31]} 18. g4 {[%clk 0:02:25]}  fxg4 {[%clk 0:02:11]} 19. Nxg5 {[%clk 0:02:24]}  Bf5 {[%clk 0:01:56]} 20. Ne4 {[%clk 0:02:23]}  Kh8 {[%clk 0:01:40]} 21. Bd3 {[%clk 0:02:22]}  Qg6 {[%clk 0:01:39]} 22. Ne7 {[%clk 0:02:18]}  Qh7 {[%clk 0:01:33]} 23. Ng5 {[%clk 0:02:05]}  Bxd3 {[%clk 0:01:30]} 24. Rxd3 {[%clk 0:02:06]}  hxg5 {[%clk 0:01:10]} 25. Rxh7+ {[%clk 0:02:02]}  Kxh7 {[%clk 0:01:11]} 26. Rd6+ {[%clk 0:01:59]}  Kh8 {[%clk 0:01:06]} 27. Qg6 {[%clk 0:01:55]} 1-0


[Site "https://www.chess.com"]

[Event "Titled Tuesday Blitz March 28 Early 2023"]
[White "Adury, Anant"]
[Black "Vafin, Ayrat"]
[WhiteFideId "30964687"]
[BlackFideId "4146530"]
[WhiteElo "2212"]
[BlackElo "2317"]
[Result "0-1"]
[Round "03"]
[TimeControl "180+2"]
[Date "2023.03.28"]
[WhiteClock "0:00:21"]
[BlackClock "0:00:51"]

1. Nf3 {[%clk 0:03:00]}  d5 {[%clk 0:02:59]} 2. c4 {[%clk 0:02:54]}  e6 {[%clk 0:02:58]} 3. d3 {[%clk 0:02:53]}  Nf6 {[%clk 0:02:58]} 4. b3 {[%clk 0:02:49]}  Be7 {[%clk 0:02:58]} 5. Bb2 {[%clk 0:02:50]}  O-O {[%clk 0:02:55]} 6. Nbd2 {[%clk 0:02:50]}  c5 {[%clk 0:02:55]} 7. e4 {[%clk 0:02:50]}  dxe4 {[%clk 0:02:55]} 8. Nxe4 {[%clk 0:02:51]}  Nc6 {[%clk 0:02:50]} 9. Be2 {[%clk 0:02:51]}  b6 {[%clk 0:02:48]} 10. O-O {[%clk 0:02:45]}  Bb7 {[%clk 0:02:46]} 11. a3 {[%clk 0:02:39]}  Nd4 {[%clk 0:02:33]} 12. Nxd4 {[%clk 0:02:34]}  cxd4 {[%clk 0:02:33]} 13. Nxf6+ {[%clk 0:02:34]}  Bxf6 {[%clk 0:02:33]} 14. Bf3 {[%clk 0:02:35]}  Qc7 {[%clk 0:02:33]} 15. b4 {[%clk 0:02:33]}  e5 {[%clk 0:02:29]} 16. b5 {[%clk 0:02:31]}  Rfe8 {[%clk 0:02:27]} 17. Re1 {[%clk 0:02:30]}  g6 {[%clk 0:02:25]} 18. a4 {[%clk 0:02:30]}  Bg7 {[%clk 0:01:51]} 19. Bxb7 {[%clk 0:02:18]}  Qxb7 {[%clk 0:01:51]} 20. a5 {[%clk 0:02:19]}  Rad8 {[%clk 0:01:44]} 21. Qc2 {[%clk 0:02:13]}  Bf8 {[%clk 0:01:31]} 22. Ba3 {[%clk 0:02:10]}  Bxa3 {[%clk 0:01:30]} 23. Rxa3 {[%clk 0:02:11]}  Qc7 {[%clk 0:01:26]} 24. f3 {[%clk 0:02:01]}  Qc5 {[%clk 0:01:20]} 25. Rea1 {[%clk 0:02:00]}  f5 {[%clk 0:01:17]} 26. axb6 {[%clk 0:01:46]}  axb6 {[%clk 0:01:18]} 27. Ra7 {[%clk 0:01:37]}  e4 {[%clk 0:01:15]} 28. fxe4 {[%clk 0:01:31]}  fxe4 {[%clk 0:01:16]} 29. Rb7 {[%clk 0:01:30]}  Re7 {[%clk 0:01:01]} 30. Rxe7 {[%clk 0:01:06]}  Qxe7 {[%clk 0:01:02]} 31. Re1 {[%clk 0:00:20]}  e3 {[%clk 0:01:01]} 32. Rf1 {[%clk 0:00:21]}  e2 {[%clk 0:00:51]} 0-1


[Site "https://www.chess.com"]

[Event "Titled Tuesday Blitz March 28 Early 2023"]
[White "Fabris, Alberto"]
[Black "Manukyan, Artyom"]
[WhiteFideId "801348"]
[BlackFideId "13305786"]
[WhiteElo "2209"]
[BlackElo "2078"]
[Result "0-1"]
[Round "03"]
[TimeControl "180+2"]
[Date "2023.03.28"]
[WhiteClock "0:00:04"]
[BlackClock "0:00:48"]

1. e4 {[%clk 0:02:57]}  e6 {[%clk 0:02:59]} 2. d4 {[%clk 0:02:56]}  d5 {[%clk 0:03:00]} 3. Nc3 {[%clk 0:02:56]}  Nf6 {[%clk 0:03:00]} 4. Bg5 {[%clk 0:02:55]}  h6 {[%clk 0:03:00]} 5. Bxf6 {[%clk 0:02:54]}  Qxf6 {[%clk 0:03:00]} 6. e5 {[%clk 0:02:54]}  Qd8 {[%clk 0:03:00]} 7. Nf3 {[%clk 0:02:52]}  c5 {[%clk 0:03:00]} 8. Be2 {[%clk 0:02:46]}  Nc6 {[%clk 0:02:53]} 9. Nb5 {[%clk 0:02:33]}  a6 {[%clk 0:02:52]} 10. Nd6+ {[%clk 0:02:28]}  Bxd6 {[%clk 0:02:51]} 11. exd6 {[%clk 0:02:28]}  Qxd6 {[%clk 0:02:52]} 12. dxc5 {[%clk 0:02:23]}  Qxc5 {[%clk 0:02:24]} 13. O-O {[%clk 0:02:21]}  O-O {[%clk 0:02:24]} 14. c3 {[%clk 0:02:19]}  e5 {[%clk 0:02:21]} 15. Re1 {[%clk 0:02:11]}  Bg4 {[%clk 0:02:14]} 16. h3 {[%clk 0:02:10]}  Bh5 {[%clk 0:02:14]} 17. Qd2 {[%clk 0:02:01]}  Rfe8 {[%clk 0:01:57]} 18. Rad1 {[%clk 0:01:53]}  Rad8 {[%clk 0:01:56]} 19. g4 {[%clk 0:01:46]}  Bg6 {[%clk 0:01:56]} 20. Nh4 {[%clk 0:01:45]}  Bh7 {[%clk 0:01:55]} 21. g5 {[%clk 0:01:42]}  hxg5 {[%clk 0:01:55]} 22. Qxg5 {[%clk 0:01:41]}  e4 {[%clk 0:01:51]} 23. Bg4 {[%clk 0:01:29]}  Ne5 {[%clk 0:01:49]} 24. Nf5 {[%clk 0:01:12]}  Bxf5 {[%clk 0:01:46]} 25. Qxf5 {[%clk 0:01:11]}  Nd3 {[%clk 0:01:43]} 26. Re3 {[%clk 0:01:09]}  Re5 {[%clk 0:01:41]} 27. b4 {[%clk 0:00:33]}  Qd6 {[%clk 0:01:15]} 28. Qxe5 {[%clk 0:00:21]}  Nxe5 {[%clk 0:00:51]} 29. Rxe4 {[%clk 0:00:20]}  Nxg4 {[%clk 0:00:50]} 30. Rxg4 {[%clk 0:00:19]}  Qe5 {[%clk 0:00:49]} 31. Rgd4 {[%clk 0:00:18]}  Rd6 {[%clk 0:00:47]} 32. Kf1 {[%clk 0:00:18]}  b5 {[%clk 0:00:48]} 33. a3 {[%clk 0:00:16]}  Qh2 {[%clk 0:00:48]} 34. R1d3 {[%clk 0:00:13]}  Re6 {[%clk 0:00:46]} 35. Re3 {[%clk 0:00:11]}  Rxe3 {[%clk 0:00:46]} 36. fxe3 {[%clk 0:00:10]}  Qxh3+ {[%clk 0:00:46]} 37. Ke2 {[%clk 0:00:10]}  Qh2+ {[%clk 0:00:47]} 38. Kd3 {[%clk 0:00:10]}  Qa2 {[%clk 0:00:48]} 39. e4 {[%clk 0:00:05]}  dxe4+ {[%clk 0:00:48]} 40. Rxe4 {[%clk 0:00:04]}  g6 {[%clk 0:00:48]} 0-1


[Site "https://www.chess.com"]

[Event "Titled Tuesday Blitz March 28 Early 2023"]
[White "Prabhu, Naveen"]
[Black "Larina, Maria"]
[WhiteFideId "30939372"]
[BlackFideId "24113182"]
[WhiteElo "2090"]
[BlackElo "1848"]
[Result "1/2-1/2"]
[Round "03"]
[TimeControl "180+2"]
[Date "2023.03.28"]
[WhiteClock "0:00:04"]
[BlackClock "0:00:11"]

1. e4 {[%clk 0:03:00]}  c6 {[%clk 0:02:59]} 2. d4 {[%clk 0:03:00]}  d5 {[%clk 0:03:00]} 3. e5 {[%clk 0:03:00]}  Bf5 {[%clk 0:03:00]} 4. h4 {[%clk 0:02:58]}  h5 {[%clk 0:02:57]} 5. Bg5 {[%clk 0:02:50]}  Qb6 {[%clk 0:02:55]} 6. b3 {[%clk 0:02:28]}  e6 {[%clk 0:02:47]} 7. Nf3 {[%clk 0:02:23]}  c5 {[%clk 0:02:39]} 8. Bd3 {[%clk 0:02:12]}  Bg4 {[%clk 0:02:38]} 9. Nbd2 {[%clk 0:01:50]}  cxd4 {[%clk 0:02:34]} 10. a3 {[%clk 0:01:23]}  Nc6 {[%clk 0:02:32]} 11. Qb1 {[%clk 0:01:21]}  f6 {[%clk 0:02:01]} 12. Bg6+ {[%clk 0:01:15]}  Kd7 {[%clk 0:02:01]} 13. Bf4 {[%clk 0:01:12]}  Nge7 {[%clk 0:01:38]} 14. Bd3 {[%clk 0:01:11]}  Nf5 {[%clk 0:01:22]} 15. b4 {[%clk 0:01:02]}  Qc7 {[%clk 0:01:12]} 16. Bxf5 {[%clk 0:00:31]}  Bxf5 {[%clk 0:01:06]} 17. b5 {[%clk 0:00:31]}  Nxe5 {[%clk 0:01:03]} 18. Nxd4 {[%clk 0:00:31]}  Bg6 {[%clk 0:00:43]} 19. Bg3 {[%clk 0:00:23]}  Bd6 {[%clk 0:00:39]} 20. O-O {[%clk 0:00:23]}  Qc3 {[%clk 0:00:32]} 21. N2f3 {[%clk 0:00:15]}  Nxf3+ {[%clk 0:00:29]} 22. Nxf3 {[%clk 0:00:16]}  Bxg3 {[%clk 0:00:26]} 23. fxg3 {[%clk 0:00:17]}  Qxc2 {[%clk 0:00:20]} 24. Qb4 {[%clk 0:00:17]}  Qc7 {[%clk 0:00:17]} 25. Rac1 {[%clk 0:00:16]}  Qd6 {[%clk 0:00:17]} 26. Qa4 {[%clk 0:00:13]}  Rhc8 {[%clk 0:00:13]} 27. b6+ {[%clk 0:00:13]}  Ke7 {[%clk 0:00:13]} 28. Rxc8 {[%clk 0:00:11]}  Rxc8 {[%clk 0:00:12]} 29. bxa7 {[%clk 0:00:11]}  Ra8 {[%clk 0:00:13]} 30. Rc1 {[%clk 0:00:07]}  Qb6+ {[%clk 0:00:13]} 31. Kh2 {[%clk 0:00:07]}  Rxa7 {[%clk 0:00:13]} 32. Rc7+ {[%clk 0:00:06]}  Qxc7 {[%clk 0:00:13]} 33. Qxa7 {[%clk 0:00:07]}  Be4 {[%clk 0:00:12]} 34. Qa4 {[%clk 0:00:07]}  Bxf3 {[%clk 0:00:11]} 35. gxf3 {[%clk 0:00:07]}  Qc6 {[%clk 0:00:10]} 36. Qb4+ {[%clk 0:00:07]}  Kf7 {[%clk 0:00:10]} 37. Kh3 {[%clk 0:00:06]}  e5 {[%clk 0:00:11]} 38. Qd2 {[%clk 0:00:04]}  d4 {[%clk 0:00:11]} 39. Qd3 {[%clk 0:00:05]}  Qe6+ {[%clk 0:00:10]} 40. Kg2 {[%clk 0:00:05]}  Qd5 {[%clk 0:00:11]} 41. Kf2 {[%clk 0:00:03]}  b5 {[%clk 0:00:11]} 42. Kg2 {[%clk 0:00:02]}  Qc4 {[%clk 0:00:11]} 43. Qe4 {[%clk 0:00:02]}  Qc7 {[%clk 0:00:09]} 44. Qf5 {[%clk 0:00:02]}  Qd6 {[%clk 0:00:08]} 45. Qxh5+ {[%clk 0:00:02]}  Ke7 {[%clk 0:00:09]} 46. Qf5 {[%clk 0:00:01]}  Qe6 {[%clk 0:00:08]} 47. Qd3 {[%clk 0:00:01]}  Qd5 {[%clk 0:00:08]} 48. Qd2 {[%clk 0:00:01]}  Qc4 {[%clk 0:00:08]} 49. Kf2 {[%clk 0:00:01]}  Qc5 {[%clk 0:00:08]} 50. Qd3 {[%clk 0:00:01]}  Qc4 {[%clk 0:00:08]} 51. Ke2 {[%clk 0:00:02]}  Qxd3+ {[%clk 0:00:07]} 52. Kxd3 {[%clk 0:00:03]}  Kd6 {[%clk 0:00:08]} 53. g4 {[%clk 0:00:03]}  Ke6 {[%clk 0:00:07]} 54. h5 {[%clk 0:00:03]}  Ke7 {[%clk 0:00:06]} 55. Ke4 {[%clk 0:00:03]}  Ke6 {[%clk 0:00:06]} 56. Kd3 {[%clk 0:00:03]}  Kd5 {[%clk 0:00:06]} 57. Kd2 {[%clk 0:00:02]}  Kc5 {[%clk 0:00:06]} 58. Kd3 {[%clk 0:00:03]}  b4 {[%clk 0:00:07]} 59. axb4+ {[%clk 0:00:02]}  Kxb4 {[%clk 0:00:08]} 60. f4 {[%clk 0:00:02]}  exf4 {[%clk 0:00:08]} 61. Kxd4 {[%clk 0:00:02]}  f3 {[%clk 0:00:08]} 62. Ke3 {[%clk 0:00:02]}  f2 {[%clk 0:00:08]} 63. Kxf2 {[%clk 0:00:02]}  Kc5 {[%clk 0:00:09]} 64. Kf3 {[%clk 0:00:03]}  Kd6 {[%clk 0:00:09]} 65. Kf4 {[%clk 0:00:04]}  Ke6 {[%clk 0:00:09]} 66. Ke4 {[%clk 0:00:04]}  Kf7 {[%clk 0:00:08]} 67. Kf5 {[%clk 0:00:05]}  Kg8 {[%clk 0:00:09]} 68. Kg6 {[%clk 0:00:05]}  Kf8 {[%clk 0:00:09]} 69. h6 {[%clk 0:00:03]}  gxh6 {[%clk 0:00:09]} 70. Kxh6 {[%clk 0:00:04]}  Kf7 {[%clk 0:00:09]} 71. Kh7 {[%clk 0:00:03]}  Ke6 {[%clk 0:00:09]} 72. Kg6 {[%clk 0:00:04]}  Ke5 {[%clk 0:00:09]} 73. Kf7 {[%clk 0:00:04]}  Kf4 {[%clk 0:00:10]} 74. Kxf6 {[%clk 0:00:04]}  Kxg4 {[%clk 0:00:11]} 1/2-1/2


[Site "https://www.chess.com"]

[Event "Titled Tuesday Blitz March 28 Early 2023"]
[White "Vaglio Munoz, Jaime"]
[Black "Hartikainen, Jarmo"]
[WhiteFideId "6500145"]
[BlackFideId "503134"]
[WhiteElo "2199"]
[BlackElo "2181"]
[Result "1-0"]
[Round "03"]
[TimeControl "180+2"]
[Date "2023.03.28"]
[WhiteClock "0:00:44"]
[BlackClock "0:00:02"]

1. Nf3 {[%clk 0:03:00]}  Nf6 {[%clk 0:02:59]} 2. c4 {[%clk 0:03:00]}  c5 {[%clk 0:02:57]} 3. b3 {[%clk 0:03:00]}  g6 {[%clk 0:02:56]} 4. Bb2 {[%clk 0:03:00]}  Bg7 {[%clk 0:02:57]} 5. g4 {[%clk 0:03:00]}  h6 {[%clk 0:02:38]} 6. h3 {[%clk 0:02:54]}  Nc6 {[%clk 0:02:36]} 7. Bg2 {[%clk 0:02:53]}  d6 {[%clk 0:02:34]} 8. d3 {[%clk 0:02:52]}  e5 {[%clk 0:02:32]} 9. Nc3 {[%clk 0:02:50]}  Be6 {[%clk 0:02:31]} 10. Nd2 {[%clk 0:02:48]}  Qd7 {[%clk 0:02:08]} 11. e3 {[%clk 0:02:46]}  O-O {[%clk 0:01:44]} 12. Nde4 {[%clk 0:02:45]}  Nxe4 {[%clk 0:01:33]} 13. dxe4 {[%clk 0:02:44]}  a6 {[%clk 0:01:23]} 14. Qd2 {[%clk 0:02:43]}  Rad8 {[%clk 0:01:04]} 15. Rd1 {[%clk 0:02:39]}  f5 {[%clk 0:00:51]} 16. exf5 {[%clk 0:02:01]}  gxf5 {[%clk 0:00:51]} 17. gxf5 {[%clk 0:01:58]}  Bxf5 {[%clk 0:00:46]} 18. Rg1 {[%clk 0:01:48]}  Nb4 {[%clk 0:00:20]} 19. Ne4 {[%clk 0:01:43]}  Kh8 {[%clk 0:00:16]} 20. a3 {[%clk 0:01:31]}  Nc6 {[%clk 0:00:16]} 21. Nxd6 {[%clk 0:01:15]}  Bxh3 {[%clk 0:00:16]} 22. Bxh3 {[%clk 0:01:07]}  Qxh3 {[%clk 0:00:15]} 23. Qd5 {[%clk 0:00:55]}  Qh2 {[%clk 0:00:11]} 24. Qg2 {[%clk 0:00:53]}  Qxg2 {[%clk 0:00:11]} 25. Rxg2 {[%clk 0:00:53]}  Rf6 {[%clk 0:00:09]} 26. Ne4 {[%clk 0:00:52]}  Rff8 {[%clk 0:00:08]} 27. Nxc5 {[%clk 0:00:49]}  Rxd1+ {[%clk 0:00:07]} 28. Kxd1 {[%clk 0:00:49]}  b5 {[%clk 0:00:06]} 29. Ne6 {[%clk 0:00:49]}  Rf7 {[%clk 0:00:05]} 30. Nxg7 {[%clk 0:00:48]}  Rxg7 {[%clk 0:00:06]} 31. Rxg7 {[%clk 0:00:47]}  Kxg7 {[%clk 0:00:07]} 32. f4 {[%clk 0:00:48]}  Kf6 {[%clk 0:00:06]} 33. cxb5 {[%clk 0:00:47]}  axb5 {[%clk 0:00:06]} 34. a4 {[%clk 0:00:48]}  bxa4 {[%clk 0:00:05]} 35. bxa4 {[%clk 0:00:48]}  h5 {[%clk 0:00:05]} 36. Ke2 {[%clk 0:00:47]}  Kf5 {[%clk 0:00:05]} 37. fxe5 {[%clk 0:00:47]}  h4 {[%clk 0:00:04]} 38. Kf3 {[%clk 0:00:47]}  h3 {[%clk 0:00:04]} 39. Kg3 {[%clk 0:00:46]}  Ke4 {[%clk 0:00:03]} 40. e6 {[%clk 0:00:46]}  Kxe3 {[%clk 0:00:03]} 41. a5 {[%clk 0:00:46]}  Ke4 {[%clk 0:00:02]} 42. a6 {[%clk 0:00:44]}  Kd5 {[%clk 0:00:02]} 43. e7 {[%clk 0:00:44]}  Nxe7 {[%clk 0:00:02]} 44. a7 {[%clk 0:00:45]}  Nf5+ {[%clk 0:00:02]} 45. Kf4 {[%clk 0:00:44]} 1-0


[Site "https://www.chess.com"]